[Event "2nd Serbia Open Masters 2022"]
[Site "Novi Sad"]
[Date "2022.06.29"]
[Round "2.28"]
[White "Palczert, Matyas"]
[Black "Parkhov, Yair"]
[Result "1/2-1/2"]
[ECO "B99"]
[WhiteElo "2353"]
[BlackElo "2460"]
[Annotator "TA"]
[PlyCount "79"]
[EventDate "2022.06.28"]
[EventType "swiss"]
[EventCountry "SRB"]
[SourceTitle "playchess.com"]
[Source "ChessBase"]
[SourceQuality "1"]
[TimeControl "40/5400+30:900+30"]

{[%evp 21,79,25,52,52,52,53,53,52,52,52,64,66,59,-324,49,50,56,48,55,55,58,54,50,52,54,59,60,56,61,46,54,37,38,29,27,35,41,36,36,36,36,36,31,31,42,35,59,54,54,54,54,54,59,59,74,58,58,45,45,27]} 1. e4 {[%emt 0:00:30]} c5 {[%emt 0:00:30]} 2. Nf3 {[%emt 0:02:34]} d6 {[%emt 0:00:00]} 3. d4 {[%emt 0:00:14]} cxd4 {[%emt 0:00:00]} 4. Nxd4 {[%emt 0:00:11]} Nf6 {[%emt 0:00:00]} 5. Nc3 {[%emt 0:00:24]} a6 {[%emt 0:00:00]} 6. Bg5 {[%emt 0:00:32]} e6 {[%emt 0:00:00]} 7. f4 {[%emt 0:00:26]} Be7 {[%emt 0:00:05]} 8. Qf3 {[%emt 0:00:43]} h6 {[%emt 0:00:06]} 9. Bh4 {[%emt 0:00:58]} Nbd7 {[%emt 0:00:07][%cal Bb8d7,Bd7f6,Bf6e4,Be4c3][%mdl 32]} 10. O-O-O {[%emt 0:02:16]} Qc7 {[%emt 0:01:55] 10...g5 is the hot move.} 11. Be2 {[%emt 0:12:43]} b5 {[%emt 0:00:34]} (11... Nxe4 $2 12. Nxe4 (12. Nxe6 fxe6 13. Nxe4 d5 $16) 12... Bxh4 {[#]} 13. Nxe6 $1 {[%mdl 512]} fxe6 14. Qh5+ Kf8 15. Nxd6 $18 (15. Qxh4 d5 $16)) 12. Bxf6 {[%emt 0:06:36] B99: Sicilian Najdorf: 6 Bg5 e6 7 f4 Be7 8 Qf3 Qc7 9 0-0-0 Nbd7.} Nxf6 {[%emt 0:00:17]} (12... Bxf6 $2 13. e5 dxe5 14. Ndxb5 (14. Qxa8 exd4 15. Ne4 O-O $17) 14... axb5 15. Qxa8 $18) 13. e5 $1 {[%emt 0:03:23]} Bb7 {[%emt 0:00:08]} 14. Qg3 {[%emt 0:00:58]} dxe5 {[%emt 0:01:39]} 15. fxe5 {[%emt 0:00:42] Ndxb5 is the strong threat.} Ne4 {[%emt 0:00:10] [#]} 16. Nxe6 $1 {[%emt 0:04:06]} Qxc3 {[%emt 0:00:24]} 17. Nxg7+ {[%emt 0:02:28]} ({But not} 17. Qxc3 Bg5+ 18. Nxg5 Nxc3 19. bxc3 hxg5 $11) (17. Qxg7 $2 Ba3 18. Rd8+ Ke7 19. Rd7+ Kxd7 $19) 17... Kf8 {[%emt 0:01:14]} 18. Ne6+ $1 {[%emt 0:00:53]} Ke8 {[%emt 0:00:58]} 19. Qxc3 {[%emt 0:00:46][%mdl 64] Remove Defender. Really sharp!} Nxc3 {[%emt 0:01:49]} 20. Nc7+ {[%emt 0:00:19]} Kf8 {[%emt 0:00:04]} 21. bxc3 {[%emt 0:00:17]} Rc8 {[%emt 0:01:45]} 22. Nd5 {[%emt 0:02:00]} ({Not} 22. Rd7 Bc6 23. Rxe7 Kxe7 24. Nxa6 Bxg2 $17) 22... Ba3+ {[%emt 0:00:15] This bishop pair is nice.} 23. Kb1 {[%emt 0:00:17]} Bxd5 {[%emt 0:00:07]} 24. Rxd5 {[%emt 0:00:14]} Rg8 {[%emt 0:00:06] [#]} 25. g3 $146 {[%emt 0:15:06]} ({Predecessor:} 25. Bf3 Rxc3 26. Rhd1 Rc4 27. R1d3 Rb4+ 28. Rb3 Ke7 29. c3 Ra4 30. Rd4 Ra5 31. c4 bxc4 32. Rxc4 {½-½ (50) Ferreira,J (2298)-Gunkel,W (2314) ICCF email 2012}) 25... Rg5 {[%emt 0:10:47]} 26. Bd3 {[%emt 0:18:17]} Rxc3 {[%emt 0:08:35]} 27. Rf1 {[%emt 0:04:26]} Rg4 {[%emt 0:23:57]} 28. Rf4 {[%emt 0:01:55]} Rxf4 {[%emt 0:02:16]} 29. gxf4 $14 {[%emt 0:00:20][%mdl 4096] Endgame KRB-KRB} Ke7 {[%emt 0:00:39] Inhibits Rd8.} 30. Rd4 {[%emt 0:05:01]} Rc8 {[%emt 0:03:30]} 31. c4 {[%emt 0:06:20]} Bc5 {[%emt 0:09:42]} 32. Re4 {[%emt 0:03:46]} Rd8 {[%emt 0:00:07]} 33. Kc2 {[%emt 0:00:45]} Rd4 {[%emt 0:01:13]} 34. cxb5 {[%emt 0:01:15] Strongly threatening Rxd4.} Rxe4 {[%emt 0:03:56]} 35. Bxe4 {[%emt 0:00:09]} axb5 {[%emt 0:00:04] KB-KB} 36. Kd3 {[%emt 0:01:17] Prevents Be3.} f6 {[%emt 0:01:06]} 37. Bc6 {[%emt 0:02:14]} b4 {[%emt 0:01:17]} 38. Ke4 {[%emt 0:02:20]} fxe5 {[%emt 0:00:15]} 39. Kxe5 {[%emt 0:00:38]} Be3 {[%emt 0:00:31]} 40. f5 {[%emt 0:00:00] Weighted Error Value: White=0.02 (flawless) /Black=0.04 (flawless)} 1/2-1/2

[Event "2nd Serbia Open Masters 2022"]
[Site "Novi Sad"]
[Date "2022.06.29"]
[Round "2.29"]
[White "Pranav Anand"]
[Black "Hristodoulou, Panagiotis"]
[Result "1/2-1/2"]
[ECO "C11"]
[WhiteElo "2479"]
[BlackElo "2328"]
[Annotator "TA"]
[PlyCount "128"]
[EventDate "2022.06.28"]
[EventType "swiss"]
[EventCountry "SRB"]
[SourceTitle "playchess.com"]
[Source "ChessBase"]
[SourceQuality "1"]
[TimeControl "40/5400+30:900+30"]

{[%evp 18,128,14,0,29,18,42,35,41,0,0,0,0,0,0,0,0,0,7,0,0,0,0,0,-6,-37,-32,-29,-25,-136,-131,-137,-121,-170,-171,-136,-136,-370,-276,-276,-269,-269,-246,-251,-244,-425,-397,-361,-360,-509,-422,-428,-422,-397,-196,-191,-199,-173,-189,-187,-199,-256,-249,-250,-249,-216,0,0,0,-8,0,0,0,0,0,0,0,0,0,0,0,0,1761,1265,1008,0,0,0,0,0,0,0,0,0,0,0,0,0,0,0,0,0,0,0,0,0,0,0,0,0,0,0,0]} 1. e4 {[%emt 0:00:19]} e6 {[%emt 0:00:21]} 2. d4 {[%emt 0:00:29]} d5 {[%emt 0:00:09]} 3. Nc3 {[%emt 0:00:04]} Nf6 {[%emt 0:00:29]} 4. e5 {[%emt 0:00:05]} Nfd7 {[%emt 0:00:10]} 5. f4 {[%emt 0:00:02]} c5 {[%emt 0:00:12]} 6. Nf3 {[%emt 0:00:03]} Nc6 {[%emt 0:00:13]} 7. Be3 {[%emt 0:00:05]} cxd4 {[%emt 0:01:49]} 8. Nxd4 {[%emt 0:00:06]} Bc5 {[%emt 0:00:07]} 9. Qd2 {[%emt 0:00:08]} O-O {[%emt 0:00:22]} 10. O-O-O {[%emt 0:00:13]} Bxd4 {[%emt 0:00:08] C11: French: Classical System: 4 e5 and 4 Bg5 dxe4.} 11. Bxd4 {[%emt 0:00:06]} Qa5 {[%emt 0:00:03]} 12. Kb1 {[%emt 0:05:41]} Rb8 {[%emt 0:00:43] White is slightly better.} 13. Bf2 {[%emt 0:10:43]} b5 {[%emt 0:00:48][%cal Bb7b5,Bb5b4][%mdl 32]} 14. Bd3 {[%emt 0:00:59]} b4 {[%emt 0:03:31]} (14... d4 15. Ne4 $16) 15. Ne2 {[%emt 0:00:07]} Ba6 {[%emt 0:03:28]} 16. Nd4 {[%emt 0:12:35]} Nxd4 {[%emt 0:15:40]} 17. Bxd4 {[%emt 0:00:03]} Rfc8 {[%emt 0:00:19]} 18. g4 {[%emt 0:08:12] [#]} (18. b3 {keeps more tension.} Nc5 19. g4 Rb7 20. Rc1) 18... Bxd3 $146 {[%emt 0:13:17][%mdl 128] Black has some attack.} ({Predecessor:} 18... Nc5 19. f5 Na4 20. Ka1 Bc4 21. f6 Nc5 22. Bxc4 Ne4 23. Qf4 Rxc4 24. fxg7 Nc3 {0-1 (24) Matsuura,E (2497)-Garcia Palermo,C (2390) Caioba 2018}) 19. cxd3 {[%emt 0:00:30]} Qb5 {[%emt 0:00:15]} 20. b3 {[%emt 0:10:25]} a5 {[%emt 0:01:05]} 21. f5 {[%emt 0:00:06]} a4 {[%emt 0:06:00]} 22. Rc1 {[%emt 0:17:16]} axb3 {[%emt 0:07:35]} 23. axb3 {[%emt 0:00:01]} (23. Rxc8+ $11 Rxc8 24. axb3) 23... Nc5 $17 {[%emt 0:00:32]} 24. Bxc5 {[%emt 0:01:01]} ({Much weaker is} 24. Qc2 Ra8 $1 25. Rhd1 (25. Bxc5 Ra3 $17) (25. fxe6 $2 Qa6 $19) 25... Rc7 $1 26. Bxc5 Qa5 $17) 24... Rxc5 {[%emt 0:00:02]} 25. Rxc5 {[%emt 0:00:09]} (25. Kb2 $17) 25... Qxc5 {[%emt 0:00:05][%mdl 4096] Endgame KQR-KQR} 26. d4 {[%emt 0:00:04]} Qa7 {[%emt 0:00:26]} 27. f6 $2 {[%emt 0:10:54]} (27. fxe6 $17 {is a better defense.} fxe6 28. Rf1) 27... Ra8 {[%emt 0:04:40]} 28. Qb2 {[%emt 0:00:09] Inhibits Qa1+.} Qa6 {[%emt 0:01:19]} 29. Rd1 {[%emt 0:03:49] Inhibits Qd3+.} h6 {[%emt 0:11:46]} 30. h4 {[%emt 0:00:58]} Rc8 {[%emt 0:00:22]} 31. h5 $2 {[%emt 0:03:32]} (31. Qa2 Qxa2+ 32. Kxa2) 31... Rc3 $19 {[%emt 0:02:26]} 32. Qa2 {[%emt 0:14:36]} Qb5 {[%emt 0:00:48]} 33. Qa8+ {[%emt 0:01:01]} (33. fxg7 {was worth a try.} Kxg7 34. Ka1) 33... Kh7 {[%emt 0:00:03] ( -> ...Qe2)} 34. Qa2 {[%emt 0:00:07] Inhibits Qe2.} gxf6 {[%emt 0:20:32]} 35. exf6 {[%emt 0:00:14]} Qb8 {[%emt 0:00:11]} (35... Qb6 $142 {...Qc7 is the strong threat.} 36. Qb2 Qa7) 36. Rc1 {[%emt 0:02:29]} Rxc1+ {[%emt 0:00:22]} 37. Kxc1 {[%emt 0:00:00] KQ-KQ} Qf4+ {[%emt 0:00:10]} 38. Qd2 {[%emt 0:00:05]} Qxg4 {[%emt 0:00:43]} ({Not} 38... Qxf6 39. Qxb4 Qf3 40. Qf8 $17) 39. Qxb4 {[%emt 0:01:19]} (39. Qc2+ {keeps fighting.} Kh8 40. Qc8+ Qg8 41. Qc5) 39... Qxh5 {[%emt 0:00:32]} 40. Qd2 {[%emt 0:00:00]} Kg6 {[%emt 0:00:00] Hoping for ...Qg5.} 41. b4 {[%emt 0:03:15]} Kxf6 $2 {[%emt 0:05:51]} (41... Qf3 $19 {And now ...Qb3 would win.} 42. Kb2 Qf1 43. Qc2+ Kxf6) 42. b5 $11 {[%emt 0:00:42]} Ke7 {[%emt 0:07:02] aiming for ...Qg5.} 43. Kb2 {[%emt 0:05:46]} Qf3 {[%emt 0:07:17]} 44. Qh2 {[%emt 0:00:26] Against Qg3. Black must now prevent b6.} Qd3 {[%emt 0:02:02][%csl LRb5,LRd4]} 45. Qc7+ {[%emt 0:01:12]} Ke8 {[%emt 0:02:08]} 46. Qc8+ {[%emt 0:00:10]} Ke7 {[%emt 0:00:01]} 47. Qc7+ {[%emt 0:00:09]} Ke8 {[%emt 0:00:08]} 48. b6 {[%emt 0:04:54]} Qb5+ $1 {[%emt 0:02:43]} (48... Qxd4+ $2 49. Ka3 e5 50. b7 Qa1+ 51. Kb3 Qb1+ 52. Ka4 Qa2+ 53. Kb5 Qb3+ 54. Ka6 Qd3+ 55. Kb6 Qb3+ 56. Ka5 Qa2+ 57. Kb5 Qb1+ 58. Ka6 Qd3+ 59. Kb6 Qb3+ 60. Ka6 Qd3+ $18) 49. Kc3 {[%emt 0:00:14] Intending b7 and mate.} Qd7 $2 {[%emt 0:00:33][%mdl 8192] [#]} (49... Qa5+ $11 50. Kd3 Qe1) 50. Qb8+ $1 $18 {[%emt 0:00:04]} Qd8 {[%emt 0:00:30]} 51. Qa7 $2 {[%emt 0:00:01]} ({Only move:} 51. Qb7 $18 Qg5 52. Qc8+ Ke7 53. b7 Qe3+ 54. Kb4 Qd2+ 55. Qc3 (55. Kc5 Qa5+ 56. Kc6 Qa6+ 57. Kc5 Qa5+ 58. Kc6 Qa6+ 59. Kc5 Qa5+ $11)) 51... Qc8+ $1 $11 {[%emt 0:00:09] The position is equal.} 52. Kd2 {[%emt 0:00:12] White wants to mate with b7. Active counter play!} Qc4 {[%emt 0:00:20]} 53. b7 {[%emt 0:00:50]} Qb4+ {[%emt 0:00:05]} 54. Ke2 {[%emt 0:04:13]} Qc4+ {[%emt 0:01:00]} 55. Ke3 {[%emt 0:00:01]} Qc1+ {[%emt 0:00:45]} 56. Kd3 $1 {[%emt 0:00:25]} Qc4+ {[%emt 0:00:01]} 57. Kd2 {[%emt 0:00:13]} Qb4+ {[%emt 0:00:02]} 58. Ke3 {[%emt 0:00:07]} Qc3+ {[%emt 0:00:58]} 59. Kf4 {[%emt 0:00:12]} Qc1+ {[%emt 0:00:53]} 60. Ke5 {[%emt 0:01:16]} Qc7+ {[%emt 0:00:16]} 61. Kf6 {[%emt 0:00:06]} Qf4+ {[%emt 0:00:05]} 62. Kg7 {[%emt 0:00:05]} Qg5+ {[%emt 0:00:04]} (62... Qg3+ 63. Kh8 f5 64. b8=Q+ Qxb8 65. Qxb8+ Kd7 66. Qb6 f4 67. Kg7) 63. Kh7 $1 {[%emt 0:00:16]} Qf5+ {[%emt 0:00:11]} 64. Kg7 {[%emt 0:00:13][%cal Rb7b8]} Qg5+ {[%emt 0:00:08] What a bad dream for Black.  Weighted Error Value: White=0.29 (precise) /Black=0.12 (very precise)} 1/2-1/2

[Event "2nd Serbia Open Masters 2022"]
[Site "Novi Sad"]
[Date "2022.06.29"]
[Round "2.30"]
[White "Kushagra Mohan"]
[Black "Suleymenov, Alisher"]
[Result "1-0"]
[ECO "B30"]
[WhiteElo "2343"]
[BlackElo "2445"]
[Annotator "TA"]
[PlyCount "137"]
[EventDate "2022.06.28"]
[EventType "swiss"]
[EventCountry "SRB"]
[SourceTitle "playchess.com"]
[Source "ChessBase"]
[SourceQuality "1"]
[TimeControl "40/5400+30:900+30"]

{[%evp 10,137,9,0,14,-8,25,11,19,25,35,30,35,10,11,1,1,-8,0,0,2,10,34,45,35,38,36,11,4,8,2,4,27,3,85,70,100,0,0,0,0,0,0,0,0,0,1,6,14,20,37,20,33,0,13,0,0,0,68,62,81,79,137,0,0,0,0,0,0,0,0,0,0,0,39,0,0,0,0,0,0,0,14,0,0,0,0,0,8,8,8,0,0,0,258,260,222,201,322,304,386,386,628,606,533,520,966,384,29966,29957,29973,29974,29974,29975,29975,29976,29976,29977,29977,29978,29978,29979,29979,29979,29980,29981,29981,29982,29987,29988]} 1. e4 {[%emt 0:00:17]} c5 {[%emt 0:00:06]} 2. Nc3 {[%emt 0:00:03]} Nc6 {[%emt 0:00:24]} 3. Bb5 {[%emt 0:00:07]} Nd4 {[%emt 0:00:16]} 4. Nf3 {[%emt 0:00:10]} e6 {[%emt 0:00:08]} 5. O-O {[%emt 0:00:12]} a6 {[%emt 0:00:06]} 6. Bd3 {[%emt 0:00:11]} Nc6 {[%emt 0:00:07] B30: Sicilian: 2...Nc6 3 Bb5, lines without ...g6.} 7. Nd5 {[%emt 0:00:20][%cal Oa2a3]} d6 {[%emt 0:13:46][%cal Bd7d6,Bd6d5][%mdl 32]} 8. Ne3 {[%emt 0:00:09]} Nf6 {[%emt 0:00:28] The position is equal.} 9. c3 {[%emt 0:00:46] Against Nb4} Be7 {[%emt 0:03:07]} 10. Bc2 {[%emt 0:00:21]} O-O {[%emt 0:02:41] [#]} 11. d4 $146 {[%emt 0:00:33]} ({Predecessor:} 11. Re1 g6 12. d4 cxd4 13. cxd4 e5 14. d5 Nb4 15. Bb1 a5 16. a3 Na6 17. b4 axb4 18. axb4 {1-0 (47) Grieve,H (2282)-Muir,A (2259) Newcastle on Tyne 2021}) 11... cxd4 {[%emt 0:03:50]} 12. cxd4 {[%emt 0:00:22]} d5 {[%emt 0:00:50]} 13. e5 {[%emt 1:33:29]} Ne4 {[%emt 0:00:07]} 14. Re1 {[%emt 0:00:00][%cal Bf1e1,Be1e4,Be4g4][%mdl 32]} Bd7 {[%emt 0:12:54]} 15. Nf1 {[%emt 0:00:00]} Rc8 {[%emt 0:02:35]} 16. Bxe4 {[%emt 0:00:00]} dxe4 {[%emt 0:00:05]} 17. Rxe4 {[%emt 0:00:00]} Nb4 {[%emt 0:00:11]} 18. Ng3 {[%emt 0:00:00]} Bc6 {[%emt 0:12:00]} 19. Rg4 {[%emt 0:00:00]} f5 {[%emt 0:02:25]} 20. exf6 $1 {[%emt 0:00:00]} Bxf6 {[%emt 0:00:15][%cal Ob4c2] This bishop pair is nice.} 21. Be3 {[%emt 0:00:00]} Qe8 {[%emt 0:05:38]} (21... Nc2 $11 {keeps the balance.} 22. Rc1 (22. Qxc2 Bxf3 23. Qxc8 Qxc8 $17) 22... Nxe3 23. fxe3 Qa5) 22. Ne5 $16 {[%emt 0:00:00][%cal Og3h5]} Bd5 {[%emt 0:07:46] [#]} 23. a3 {[%emt 0:00:00]} (23. Nh5 $1 $16) 23... Nc2 $11 {[%emt 0:01:05]} 24. Rc1 {[%emt 0:00:00]} Nxe3 {[%emt 0:01:24]} 25. fxe3 {[%emt 0:00:00]} Rxc1 {[%emt 0:06:40]} 26. Qxc1 {[%emt 0:00:00]} h5 $1 {[%emt 0:11:35]} 27. Rf4 {[%emt 0:00:00]} h4 {[%emt 0:00:04]} 28. Ne2 $36 {[%emt 0:00:00][%mdl 2048] White fights for an advantage.} Bxe5 {[%emt 0:03:18]} (28... h3 $5) 29. dxe5 {[%emt 0:00:00]} h3 {[%emt 0:00:04]} 30. e4 {[%emt 0:00:00]} Bc6 {[%emt 0:01:34]} 31. gxh3 {[%emt 0:00:00]} Qg6+ {[%emt 0:03:31]} 32. Ng3 {[%emt 0:00:00]} Rd8 {[%emt 0:00:13]} ({Resist} 32... Rxf4 33. Qxf4 Qe8 34. Qd2 $16) 33. Qe3 {[%emt 0:00:00]} Bb5 {[%emt 0:02:56] Prevents Rf1.} (33... Qh6 $11) 34. Rf2 $1 $14 {[%emt 0:00:00]} Rd1+ {[%emt 0:03:07]} 35. Kg2 {[%emt 0:00:00]} Bc6 {[%emt 0:00:22] [#]} (35... Kh7 $142) 36. Qf3 {[%emt 0:00:00]} ({Better is} 36. h4 $1 $16) 36... Rd4 {[%emt 0:00:37][%cal Rc6e4]} 37. Qg4 {[%emt 0:00:00]} Bxe4+ {[%emt 0:00:13]} 38. Kg1 {[%emt 0:00:00]} Qxg4 {[%emt 0:00:55]} 39. hxg4 $11 {[%emt 0:00:00][%mdl 4096] Endgame KRB-KRN} Bc6 {[%emt 0:01:04]} 40. h3 {[%emt 0:00:00]} Rd3 {[%emt 0:00:00]} 41. Kh2 {[%emt 0:00:00]} Bb5 {[%emt 0:04:19]} 42. Nh5 {[%emt 0:06:55]} Rd5 {[%emt 0:03:04]} 43. Rc2 {[%emt 0:01:30] Black must now prevent Rc7.} Bc6 $1 {[%emt 0:00:58]} 44. Re2 {[%emt 0:00:46]} Bb5 {[%emt 0:00:13]} 45. Rc2 {[%emt 0:00:36] Hoping for Rc8+.} Bc6 $1 {[%emt 0:00:36]} 46. Nf4 {[%emt 0:00:53][%csl LRd5,LRe6]} Rxe5 {[%emt 0:00:06]} 47. Ng6 {[%emt 0:00:02]} Rb5 {[%emt 0:00:23]} 48. Ne7+ {[%emt 0:00:05]} Kf7 {[%emt 0:00:27]} 49. Nxc6 {[%emt 0:00:04]} bxc6 {[%emt 0:00:02] KR-KR} 50. b4 {[%emt 0:00:05]} a5 {[%emt 0:00:33]} 51. Rc5 {[%emt 0:02:35]} Rb8 {[%emt 0:10:27][%mdl 8192] White now steadily converts the win.} (51... Rxc5 $11 {and Black is okay.} 52. bxc5 g5) 52. Rxa5 $18 {[%emt 0:00:54]} (52. bxa5 Ra8 $16) 52... Rd8 {[%emt 0:00:03]} 53. Kg3 {[%emt 0:01:49]} Rd3+ {[%emt 0:00:06] [#]} (53... e5 $142 54. h4 (54. Rxe5 Rd3+ 55. Kf4 Rxa3 $16) 54... Rd3+ 55. Kf2 Rd4) 54. Kf4 $1 {[%emt 0:01:48]} Rxh3 {[%emt 0:00:35]} 55. Ke5 {[%emt 0:00:05] Strongly threatening Kd6.} Re3+ $2 {[%emt 0:01:28]} (55... Rg3 56. Ra7+ Kg6 57. Kxe6 Rxg4) 56. Kd6 {[%emt 0:00:19]} Rc3 {[%emt 0:00:03]} 57. g5 {[%emt 0:02:00]} Kg6 {[%emt 0:00:41]} (57... Re3 $142 58. Kxc6 e5) 58. Kxe6 $2 {[%emt 0:00:37]} (58. Rc5 Rxa3 59. Kxc6) 58... Kh5 $2 {[%emt 0:00:01]} (58... Rd3 $18 59. Ke5 Kh5) 59. Kd6 {[%emt 0:00:27] White mates.} g6 {[%emt 0:00:18]} 60. Rc5 {[%emt 0:01:53]} Rxa3 {[%emt 0:00:04]} 61. Kxc6 {[%emt 0:00:04]} Ra6+ {[%emt 0:01:22]} 62. Kb7 {[%emt 0:00:40]} Re6 {[%emt 0:01:19]} 63. b5 {[%emt 0:00:06][%cal Bb4b5,Bb5b6,Bb6b7][%mdl 32]} Re7+ {[%emt 0:00:04]} 64. Ka6 {[%emt 0:00:05]} Re8 {[%emt 0:00:52]} 65. b6 {[%emt 0:00:06]} Ra8+ {[%emt 0:00:04]} 66. Kb7 {[%emt 0:00:06]} Rf8 {[%emt 0:01:13]} 67. Ka7 {[%emt 0:00:08]} Rf1 {[%emt 0:00:37]} 68. b7 {[%emt 0:00:08]} Ra1+ {[%emt 0:00:04]} 69. Kb6 {[%emt 0:00:03] Weighted Error Value: White=0.17 (very precise) /Black=0.42} 1-0